bitfinex/quotes_SOLUSD_20260125
["timestamp","ask_amount","ask_price","bid_price","bid_amount"]
[1769377964608,4.11854575,118.68,118.64,15.45877623]
[1769377968007,6.89747544,118.68,118.64,7.02992236]
[1769377969214,4.11854575,118.67,118.64,4.25099267]
[1769377972832,4.11854575,118.64,118.61,4.25099267]
[1769377973121,4.11854575,118.64,118.61,15.46055229]
[1769377973816,4.11854575,118.68,118.64,4.25099267]
[1769377974115,4.11854575,118.69,118.66,2.77892969]
[1769377974519,4.11854575,118.69,118.66,7.02992236]
[1769377974908,4.11854575,118.69,118.66,4.25099267]
[1769377977022,4.11854575,118.71,118.68,4.25099267]
[1769377977209,62.1,118.75,118.7,7.02992236]
[1769377977210,4.11854575,118.73,118.7,7.02992236]
[1769377977518,4.11854575,118.73,118.7,4.25099267]
[1769377978024,4.11854575,118.73,118.7,7.02992236]
[1769377979522,4.11854575,118.73,118.72,2.77892969]
[1769377979825,4.11854575,118.73,118.71,2.77892969]
[1769377981030,4.11854575,118.73,118.72,2.77892969]
[1769377981728,8.42034355,118.76,118.72,2.77892969]
[1769377983810,4.27039785,118.75,118.72,2.77892969]
[1769377984201,4.27039785,118.75,118.71,4.16197589]
[1769377984202,4.27039785,118.75,118.73,2.77892969]
[1769377985825,4.27039785,118.75,118.73,2.77572181]
[1769377986911,4.27039785,118.75,118.74,2.77572181]
[1769377987106,4.27039785,118.75,118.73,2.77572181]
[1769377987429,4.27039785,118.75,118.72,6.9376977]
[1769377988808,4.39841123,118.77,118.75,4.16197589]
[1769377989013,35.28105053,118.78,118.76,6.9376977]
[1769377990709,4.37039785,118.81,118.77,2.77572181]
[1769377990913,4.37039785,118.81,118.78,2.77572181]
[1769377992132,4.37039785,118.81,118.76,8.41998665]
[1769377992441,4.5,118.91,118.85,17.49247181]
[1769377992627,7.27572181,118.87,118.82,2.77572181]
[1769377992940,4.5,118.87,118.83,8.41538332]
[1769377993115,4.5,118.87,118.83,11.19110513]
[1769377993310,4.5,118.9,118.86,2.77572181]
[1769377993727,4.5,118.9,118.85,2.77572181]
[1769377994136,4.5,118.89,118.85,2.77572181]
[1769377994909,7.27572181,118.88,118.83,21.0384583]
[1769377995114,4.5,118.85,118.81,23.81696049]
[1769377995361,4.5,118.85,118.82,8.41552402]
[1769377995821,4.5,118.84,118.81,8.41668261]
[1769377996114,4.5,118.84,118.81,11.19240442]
[1769377996532,4.5,118.84,118.8,11.19297756]
[1769377997419,4.5,118.83,118.8,8.41725575]
[1769377997625,4.5,118.83,118.79,11.19380759]
[1769377998027,4.5,118.82,118.78,11.19454231]
[1769377998226,7.27572181,118.82,118.78,8.4188205]
[1769377998427,4.5,118.82,118.78,8.4188205]
[1769377998622,7.27572181,118.82,118.78,8.4188205]
[1769378000638,4.5,118.82,118.78,8.4188205]
[1769378002536,4.5,118.82,118.78,11.19454231]
[1769378003120,4.5,118.82,118.78,8.4188205]
[1769378003631,4.5,118.82,118.78,11.19454231]
[1769378006235,7.27572181,118.82,118.77,2.77572181]
[1769378007543,7.27572181,118.82,118.77,11.19495557]
[1769378008145,7.27572181,118.82,118.78,2.77572181]
[1769378008345,7.27572181,118.82,118.77,11.19495557]
[1769378008844,4.5,118.79,118.73,21.05500663]
[1769378009047,7.27572181,118.79,118.75,8.4207715]
[1769378009250,4.5,118.78,118.75,8.4207715]
[1769378010148,4.5,118.78,118.75,2.77572181]
[1769378011649,4.5,118.78,118.75,11.1966587]
[1769378013446,4.5,118.79,118.75,11.1966587]
[1769378014650,4.5,118.79,118.76,2.77572181]
[1769378015952,4.5,118.79,118.75,11.19648766]
[1769378016736,4.5,118.79,118.76,2.77572181]
[1769378017869,7.27572181,118.79,118.75,11.19648766]
[1769378021556,4.5,118.78,118.75,8.42076585]
[1769378021760,4.5,118.78,118.75,11.19648766]
[1769378022542,4.5,118.78,118.74,11.19714493]
[1769378024062,4.5,118.77,118.74,11.19714493]
[1769378031166,4.5,118.77,118.75,2.77572181]
[1769378031367,4.5,118.82,118.76,2.77572181]
[1769378031666,4.5,118.82,118.79,2.77572181]
[1769378032054,4.5,118.85,118.81,2.77572181]
[1769378032271,4.5,118.87,118.83,2.77572181]
[1769378033665,4.5,118.83,118.79,8.41781588]
[1769378033971,4.5,118.83,118.79,11.19353769]
[1769378035972,4.5,118.83,118.79,8.41781588]
[1769378037182,4.5,118.82,118.79,8.41781588]
[1769378038572,4.5,118.82,118.79,2.77572181]
[1769378039668,4.5,118.82,118.78,11.19395212]
[1769378039869,4.5,118.8,118.76,2.77572181]
[1769378040082,4.5,118.79,118.75,2.77572181]
[1769378040288,4.5,118.79,118.76,2.77572181]
[1769378041064,4.5,118.78,118.74,2.77572181]
[1769378041286,4.5,118.77,118.73,2.77572181]
[1769378041485,4.5,118.77,118.74,8.42133977]
[1769378042455,4.5,118.77,118.71,23.36]
[1769378042656,4.5,118.75,118.71,34.55930046]
[1769378042881,4.5,118.75,118.71,11.19930046]
[1769378043074,4.5,118.74,118.68,62.42153003]
[1769378043274,4.5,118.74,118.69,11.20059458]
[1769378043479,4.5,118.74,118.7,2.77572181]
[1769378045076,4.5,118.74,118.69,2.77572181]
[1769378045377,4.5,118.73,118.69,2.77572181]
[1769378045576,4.5,118.73,118.68,49.78332423]
[1769378045775,4.5,118.7,118.67,0.2]
[1769378045972,4.5,118.7,118.67,11.40239125]
[1769378046180,4.5,118.7,118.63,0.2]
[1769378046497,4.4,118.67,118.63,8.62950458]
[1769378046662,4.4,118.67,118.63,11.60522639]
[1769378047087,4.4,118.67,118.63,0.4]
[1769378047286,7.17572181,118.67,118.63,0.4]
[1769378047786,7.18017638,118.66,118.63,0.2]
[1769378048083,4.4,118.66,118.63,0.2]
[1769378050469,4.4,118.65,118.63,0.2]
[1769378050665,4.4,118.67,118.63,0.2]
[1769378051281,10.47705759,118.64,118.58,4.34173653]
[1769378051485,4.09363607,118.64,118.6,10.72515805]
[1769378052290,4.09363607,118.64,118.6,19.15623109]
[1769378052685,4.09363607,118.64,118.61,10.72515805]
[1769378056402,4.09363607,118.64,118.61,14.81436105]
[1769378056603,4.09363607,118.64,118.61,6.38342152]
[1769378057287,4.09363607,118.64,118.6,10.73816863]
[1769378057914,4.09363607,118.64,118.61,6.38342152]
[1769378059903,4.09363607,118.64,118.6,8.43168101]
[1769378060101,4.09363607,118.64,118.6,14.81510253]
[1769378060309,4.07035007,118.65,118.62,6.38342152]
[1769378060601,4.07035007,118.68,118.64,6.38342152]
[1769378060797,4.07035007,118.67,118.63,6.38342152]
[1769378062805,4.07035007,118.66,118.63,6.38342152]
[1769378067414,4.07035007,118.66,118.63,10.73816863]
[1769378068206,4.07035007,118.67,118.64,10.73816863]
[1769378071592,4.07035007,118.67,118.64,7.13393079]
[1769378072809,4.07035007,118.67,118.65,2.77918368]
[1769378073018,4.07035007,118.68,118.65,2.77918368]
[1769378075314,4.07035007,118.68,118.66,2.77918368]
[1769378077025,4.23385214,118.7,118.66,15.33295345]
[1769378077195,4.23385214,118.7,118.67,2.77918368]
[1769378079607,4.23385214,118.7,118.68,2.77918368]
[1769378079811,4.23385214,118.71,118.68,2.77918368]
[1769378080001,4.23385214,118.73,118.69,6.90552079]
[1769378080403,4.23385214,118.72,118.68,2.77918368]
[1769378080603,4.23385214,118.71,118.66,15.33271172]
[1769378080817,4.23385214,118.7,118.66,2.77918368]
[1769378081117,4.23385214,118.69,118.65,11.2071126]
[1769378081512,4.23385214,118.69,118.65,15.33344971]
[1769378082810,4.23385214,118.69,118.66,2.77918368]
[1769378084921,4.23385214,118.69,118.65,15.33344971]
[1769378086502,4.23385214,118.69,118.65,12.55426603]
[1769378086720,4.23385214,118.69,118.65,15.33344971]
[1769378087120,4.23385214,118.69,118.64,12.55490536]
[1769378087321,4.23385214,118.69,118.65,2.77918368]
[1769378087723,4.23385214,118.67,118.63,2.77918368]
[1769378088020,4.23385214,118.66,118.62,15.33539102]
[1769378088225,4.23385214,118.66,118.61,6.90552079]
[1769378089029,7.01303582,118.66,118.61,6.90552079]
[1769378089330,4.23385214,118.65,118.61,6.90552079]
[1769378091425,4.23385214,118.65,118.61,15.33595572]
[1769378091832,4.23385214,118.67,118.63,6.90552079]
[1769378092023,4.23385214,118.67,118.62,6.90552079]
[1769378092223,4.23385214,118.66,118.62,6.90552079]
[1769378092423,4.23385214,118.66,118.62,2.77918368]
[1769378092813,4.23385214,118.66,118.63,4.12633711]
[1769378093732,4.23385214,118.66,118.62,11.20891653]
[1769378093924,4.23385214,118.66,118.62,15.33525364]
[1769378096526,4.23385214,118.66,118.62,12.55606996]
[1769378099745,4.23385214,118.66,118.63,4.12633711]
[1769378101239,4.23385214,118.66,118.63,12.5558802]
[1769378102141,8.42603461,118.68,118.63,12.5558802]
[1769378102142,4.23385214,118.68,118.65,6.90552079]
[1769378102332,4.23385214,118.73,118.68,4.12633711]
[1769378102522,4.23385214,118.73,118.69,6.90552079]
[1769378102722,4.23385214,118.71,118.68,4.12633711]
[1769378103022,4.23385214,118.72,118.69,7.15437781]
[1769378103219,4.23385214,118.72,118.7,2.77918368]
[1769378104038,4.23385214,118.72,118.69,2.77918368]
[1769378104342,4.23385214,118.72,118.68,2.77918368]
[1769378105247,4.23385214,118.72,118.68,11.20512787]
[1769378106141,4.23385214,118.72,118.7,2.77918368]
[1769378106746,4.23385214,118.72,118.69,2.77918368]
[1769378108548,4.23385214,118.72,118.7,2.77918368]
[1769378109454,4.23385214,118.72,118.69,2.77918368]
[1769378109650,4.23385214,118.72,118.69,2.77698363]
[1769378113752,4.14282455,118.74,118.71,7.15217776]
[1769378113949,4.14282455,118.76,118.73,2.77698363]
[1769378117838,4.14282455,118.76,118.72,7.15217776]
[1769378119349,4.14282455,118.76,118.72,15.57518209]
[1769378119543,4.14282455,118.76,118.73,2.77698363]
[1769378119850,83.24673659,118.79,118.75,6.99866785]
[1769378119851,4.40151889,118.79,118.75,6.99866785]
[1769378120045,4.40151889,118.79,118.76,6.99866785]
[1769378120479,4.40151889,118.79,118.75,6.99866785]
[1769378120959,4.40151889,118.79,118.76,2.77698363]
[1769378121460,0.1,118.79,118.77,4.22168422]
[1769378122164,0.1,118.79,118.76,6.99866785]
[1769378122365,4.40151889,118.79,118.76,6.99866785]
[1769378124258,4.40151889,118.79,118.75,8.42071636]
[1769378124259,4.40151889,118.79,118.75,6.99866785]
[1769378127050,4.30151889,118.75,118.71,2.77698363]
[1769378127363,4.30151889,118.74,118.71,6.99866785]
[1769378127671,4.30151889,118.74,118.71,4.22168422]
[1769378127969,4.30151889,118.74,118.71,6.99866785]
[1769378131147,4.30151889,118.74,118.71,4.22168422]
[1769378133170,4.30151889,118.74,118.7,15.65690392]
[1769378133672,4.30151889,118.74,118.71,7.23265478]
[1769378135770,4.30151889,118.74,118.71,4.45567115]
[1769378135973,4.30151889,118.74,118.71,7.23265478]
[1769378138775,4.30151889,118.74,118.71,2.77698363]
[1769378138959,4.20233707,118.76,118.73,7.23265478]
[1769378140073,4.20233707,118.76,118.72,4.45567115]
[1769378140259,4.20233707,118.76,118.72,7.23265478]
[1769378140580,4.20233707,118.74,118.71,4.45567115]
[1769378142178,2.77698363,118.74,118.7,4.45567115]
[1769378142363,4.20233707,118.73,118.7,4.45567115]
[1769378143678,4.20233707,118.73,118.69,7.23265478]
[1769378143883,4.20233707,118.72,118.69,4.45567115]
[1769378144176,4.20233707,118.73,118.69,2.77698363]
[1769378144385,4.20233707,118.73,118.7,4.45567115]
[1769378145375,4.20233707,118.72,118.68,7.23265478]
[1769378145767,6.9793207,118.72,118.68,4.45567115]
[1769378146472,2.77698363,118.71,118.67,4.45567115]
[1769378146781,4.20233707,118.7,118.67,4.45567115]
[1769378154394,4.20233707,118.7,118.67,15.65935868]
[1769378154973,4.20233707,118.71,118.68,4.45567115]
[1769378155192,4.20233707,118.71,118.68,7.23265478]
[1769378155396,4.20233707,118.71,118.68,4.45567115]
[1769378157602,4.20233707,118.71,118.67,15.65935868]
[1769378160603,4.20233707,118.71,118.67,11.20368753]
[1769378160803,4.20233707,118.71,118.68,4.45567115]
[1769378163205,4.20233707,118.71,118.68,7.23265478]
[1769378163707,4.20233707,118.71,118.68,2.77698363]
[1769378165220,4.20233707,118.71,118.67,2.77698363]
[1769378165712,4.20233707,118.71,118.67,3.42131248]
[1769378169602,4.20233707,118.71,118.67,11.84892465]
[1769378169806,83.15483752,118.74,118.67,11.84892465]
[1769378169992,2.7779337,118.72,118.67,11.84892465]
[1769378170891,2.7779337,118.69,118.65,23.38]
[1769378171087,2.7779337,118.69,118.65,27.44224406]
[1769378171289,2.7779337,118.69,118.64,4.06224406]
[1769378171491,2.7779337,118.68,118.64,4.06224406]
[1769378171691,2.7779337,118.66,118.61,6.84017776]
[1769378171993,4.3866234,118.65,118.61,6.84017776]
[1769378172596,4.3866234,118.65,118.62,4.06224406]
[1769378175895,4.3624929,118.64,118.62,2.7779337]
[1769378176516,4.3624929,118.65,118.62,7.03315021]
[1769378177706,4.3624929,118.65,118.62,4.25521651]
[1769378178018,4.3624929,118.65,118.62,7.03315021]
[1769378181202,4.3624929,118.69,118.65,4.25521651]
[1769378181407,4.3624929,118.69,118.67,2.7779337]
[1769378186600,4.3624929,118.69,118.66,7.03315021]
[1769378188811,4.3624929,118.69,118.66,4.25521651]
[1769378191523,4.3624929,118.68,118.64,15.46168047]
[1769378191714,7.1404266,118.68,118.64,12.68374677]
[1769378191916,4.3624929,118.67,118.64,12.68374677]
[1769378193027,4.3624929,118.67,118.65,4.28853782]
[1769378197933,4.27951394,118.68,118.65,4.28853782]
[1769378199441,4.27951394,118.68,118.64,12.71706808]
[1769378204350,4.27951394,118.68,118.65,4.28853782]
[1769378206441,2.7779337,118.67,118.63,12.71808666]
[1769378206639,2.7779337,118.67,118.63,4.28853782]
[1769378207019,2.7779337,118.69,118.65,8.42802107]
[1769378207228,2.7779337,118.71,118.66,4.28853782]
[1769378208447,4.27951394,118.7,118.66,4.28853782]
[1769378208747,11.20189799,118.71,118.66,4.28853782]
[1769378210849,4.27951394,118.7,118.66,4.28853782]
[1769378211053,11.20189799,118.71,118.67,4.28853782]
[1769378213061,0.31164433,118.7,118.67,4.28853782]
[1769378213654,3.08957803,118.7,118.67,4.28853782]
[1769378216152,0.31164433,118.7,118.67,4.28853782]
[1769378217644,11.20189799,118.71,118.67,4.28853782]
[1769378219152,2.7779337,118.7,118.67,4.28853782]
[1769378219344,2.7779337,118.7,118.66,4.49842603]
[1769378219746,2.7779337,118.69,118.66,4.49842603]
[1769378221363,2.7779337,118.7,118.66,12.92582122]
[1769378222545,73.30111429,118.72,118.67,4.49842603]
[1769378224763,73.30111429,118.72,118.68,4.49842603]
[1769378226465,2.7779337,118.71,118.68,4.49842603]
[1769378226666,70.52318059,118.72,118.66,4.49842603]
[1769378226667,2.7779337,118.7,118.66,4.49842603]
[1769378229845,2.7779337,118.67,118.63,4.49842603]
[1769378230057,21.06019087,118.71,118.66,4.49842603]
[1769378230058,2.7779337,118.71,118.66,4.49842603]
[1769378230767,2.7779337,118.7,118.66,4.49842603]
[1769378231671,2.77879012,118.7,118.66,4.49842603]
[1769378232286,11.20323059,118.71,118.66,4.49842603]
[1769378235977,2.77879012,118.74,118.69,4.49842603]
[1769378236653,11.20092388,118.74,118.69,4.49842603]
[1769378237682,11.20092388,118.74,118.7,4.49842603]
[1769378239676,4.39533399,118.75,118.71,4.49842603]
[1769378239851,4.39533399,118.75,118.72,4.49842603]
[1769378240856,4.39533399,118.75,118.72,7.27721615]
[1769378241058,12.816458,118.75,118.72,4.49842603]
[1769378241680,4.39533399,118.75,118.72,4.49842603]
[1769378242057,12.81645728,118.75,118.72,4.49842603]
[1769378242378,4.39533399,118.75,118.72,4.49842603]
[1769378246279,4.39533399,118.75,118.72,7.27721615]
[1769378250559,12.81639536,118.75,118.72,7.27721615]
[1769378252273,4.39533399,118.75,118.73,4.49842603]
[1769378252466,4.39533399,118.75,118.73,7.27721615]
[1769378253274,4.39533399,118.75,118.72,4.49842603]
[1769378253477,4.39533399,118.75,118.72,7.27721615]
[1769378253864,4.39533399,118.75,118.73,2.77879012]
[1769378255177,4.39533399,118.75,118.72,7.27721615]
[1769378263100,4.39533399,118.75,118.73,7.27721615]
[1769378265190,4.39533399,118.75,118.73,4.49842603]
[1769378270891,5.34408856,118.77,118.73,4.49842603]
[1769378271194,4.39566387,118.76,118.73,4.49842603]
[1769378271878,4.39566387,118.76,118.74,4.49842603]
[1769378272073,4.39566387,118.76,118.74,4.34786662]
[1769378273074,4.39566387,118.76,118.75,2.77879012]
[1769378273274,4.39566387,118.76,118.74,4.34786662]
[1769378274897,7.29883635,118.76,118.74,4.34786662]
[1769378275197,7.29883635,118.76,118.74,1.5690765]
[1769378275375,4.39566387,118.76,118.74,1.5690765]
[1769378275578,2.90317248,118.75,118.73,2.77879012]
[1769378275776,2.90317248,118.75,118.73,6.97074447]
[1769378276190,7.29883635,118.76,118.73,6.97074447]
[1769378277698,7.29883635,118.76,118.73,4.19195435]
[1769378278801,7.29883635,118.76,118.73,6.97074447]
[1769378280893,15.71926223,118.76,118.73,4.19195435]
[1769378283995,2.90317248,118.78,118.75,7.07366103]
[1769378284497,4.39440671,118.77,118.75,7.07366103]
[1769378285100,4.39440671,118.77,118.75,4.29487091]
[1769378287503,2.90317248,118.76,118.74,4.29487091]
[1769378289007,15.71722282,118.77,118.74,4.29487091]
[1769378293208,7.29757919,118.77,118.74,4.29487091]
[1769378294016,15.71731046,118.77,118.74,4.29487091]
[1769378294509,7.29757919,118.77,118.74,7.06977082]
[1769378294695,7.29757919,118.77,118.75,4.29487091]
[1769378297417,4.39440671,118.77,118.75,4.29487091]
[1769378305125,7.29757919,118.77,118.75,4.29487091]
[1769378306225,66.54535605,118.78,118.76,4.43352167]
[1769378306523,70.94024493,118.78,118.75,4.43352167]
[1769378307022,4.44535605,118.77,118.75,4.43352167]
[1769378311533,4.44535605,118.77,118.74,4.43352167]
[1769378314828,66.49488888,118.78,118.75,6.8850212]
[1769378315025,66.49488888,118.78,118.76,4.11012129]
[1769378315338,70.60400513,118.78,118.76,4.11012129]
[1769378316043,66.49488888,118.78,118.76,4.11012129]
[1769378316245,4.39488888,118.78,118.76,4.11012129]
[1769378316434,0.1,118.79,118.78,4.11012129]
[1769378318428,4.20911625,118.82,118.79,4.11012129]
[1769378320125,6.98401616,118.82,118.79,4.11012129]
[1769378321125,4.20911625,118.82,118.79,4.11012129]
[1769378321327,4.10911625,118.81,118.78,4.11012129]
[1769378323742,4.20911625,118.82,118.8,4.11012129]
[1769378324039,4.20911625,118.82,118.8,6.8850212]
[1769378324650,0.1,118.82,118.8,6.8850212]
[1769378324850,0.1,118.83,118.81,6.8850212]
[1769378326235,4.20911625,118.83,118.81,4.11012129]
[1769378327929,0.1,118.83,118.82,2.77489991]
[1769378328226,0.1,118.83,118.82,4.11012129]
[1769378328444,0.1,118.84,118.82,6.8850212]
[1769378328866,4.20911625,118.84,118.82,4.11012129]
[1769378329150,4.20911625,118.84,118.82,6.8850212]
[1769378329356,0.1,118.84,118.82,6.8850212]
[1769378330228,0.1,118.84,118.82,4.11012129]
[1769378331951,4.20911625,118.84,118.81,4.11012129]
[1769378332141,4.20911625,118.84,118.8,4.11012129]
[1769378332327,4.20911625,118.84,118.8,6.8850212]
[1769378332534,4.10911625,118.83,118.79,6.8850212]
[1769378332735,4.10911625,118.83,118.79,4.11012129]
[1769378332945,4.10911625,118.83,118.8,4.11012129]
[1769378338834,4.10911625,118.82,118.78,4.11012129]
[1769378339156,4.10911625,118.82,118.79,4.11012129]
[1769378340138,4.10911625,118.82,118.79,6.8850212]
[1769378342054,4.10911625,118.82,118.8,4.11012129]
[1769378343658,4.1298845,118.8,118.77,4.28154173]
[1769378344556,4.1298845,118.82,118.78,4.28154173]
[1769378344743,12.54628007,118.82,118.78,4.28154173]
[1769378344946,4.1298845,118.81,118.78,4.28154173]
[1769378349471,4.1298845,118.81,118.75,4.28154173]
[1769378349764,4.1298845,118.79,118.75,4.28154173]
[1769378349942,4.1298845,118.79,118.75,7.05644164]
[1769378350342,4.1298845,118.78,118.75,4.28154173]
[1769378350660,4.1298845,118.78,118.74,7.05644164]
[1769378352153,4.1298845,118.77,118.72,4.28154173]
[1769378352364,4.1298845,118.75,118.72,4.28154173]
[1769378353189,4.1298845,118.75,118.72,7.05644164]
[1769378354259,4.1298845,118.75,118.73,2.77489991]
[1769378355589,4.1298845,118.75,118.73,2.77559308]
[1769378357275,4.1298845,118.75,118.72,4.28154173]
[1769378357568,8.42008403,118.77,118.74,4.30755825]
[1769378357776,4.41217808,118.81,118.77,4.30755825]
[1769378357950,4.41217808,118.81,118.79,2.77559308]
[1769378360664,4.41217808,118.81,118.78,2.77559308]
[1769378362476,4.41217808,118.82,118.8,2.77559308]
[1769378365163,4.41217808,118.82,118.79,7.08315133]
[1769378370873,4.41217808,118.82,118.8,2.77559308]
[1769378371082,18.27125516,118.84,118.8,7.08315133]
[1769378371282,4.41217808,118.83,118.8,7.08315133]
[1769378372089,4.41217808,118.83,118.8,4.30755825]
[1769378373891,62.1,118.86,118.83,4.26586554]
[1769378374081,4.30265796,118.87,118.8,8.41732769]
[1769378374082,4.30265796,118.87,118.84,7.04145862]
[1769378374273,4.30265796,118.87,118.84,5.77414372]
[1769378375093,4.30265796,118.87,118.85,2.77559308]
[1769378375791,4.30265796,118.88,118.85,2.77559308]
[1769378377810,4.30265796,118.87,118.84,4.26586554]
[1769378377978,4.30265796,118.87,118.85,2.77559308]
[1769378378397,8.69348947,118.87,118.85,2.77559308]
[1769378379996,4.38991117,118.9,118.86,3.47770307]
[1769378380206,4.38991117,118.9,118.87,2.77559308]
[1769378380880,4.38991117,118.9,118.85,8.41394766]
[1769378381102,2.77559308,118.88,118.83,11.89289886]
[1769378381404,2.77559308,118.89,118.84,2.77559308]
[1769378381912,4.30265796,118.88,118.84,2.77559308]
[1769378382074,4.30265796,118.88,118.85,2.77559308]
[1769378386487,4.30265796,118.88,118.84,2.77559308]
[1769378387387,4.30265796,118.88,118.85,2.77559308]
[1769378389801,4.30265796,118.88,118.84,2.77559308]
[1769378390499,4.30265796,118.87,118.84,2.77559308]
[1769378391001,4.30265796,118.84,118.79,0.70210999]
[1769378391183,4.30265796,118.83,118.8,2.77559308]
[1769378393606,4.30265796,118.83,118.79,11.89555152]
[1769378394507,4.30265796,118.83,118.79,3.47770307]
[1769378395805,7.07825104,118.83,118.79,3.47770307]
[1769378397608,4.30265796,118.83,118.8,0.70210999]
[1769378398809,4.30265796,118.83,118.79,11.89589225]
[1769378400725,4.30265796,118.83,118.8,0.70210999]
[1769378401013,7.07825104,118.83,118.79,11.89589225]
[1769378402990,4.30265796,118.82,118.79,11.89589225]
[1769378403405,4.30265796,118.82,118.79,9.12029917]
[1769378403805,4.30265796,118.82,118.79,0.70210999]
[1769378404307,1e-08,118.81,118.77,15.68819911]
[1769378404618,2.77559308,118.8,118.76,4.49328693]
[1769378405034,2.77559308,118.79,118.75,4.49328693]
[1769378406217,4.36078946,118.78,118.75,4.49328693]
[1769378407597,4.36078946,118.77,118.73,7.26888001]
[1769378408117,4.36078946,118.77,118.74,4.49328693]
[1769378408420,4.36078946,118.77,118.74,7.26888001]
[1769378409517,4.36078946,118.78,118.75,4.49328693]
[1769378409710,8.41786984,118.8,118.77,7.26888001]
[1769378409711,4.36078946,118.8,118.77,7.26888001]
[1769378409913,4.36078946,118.8,118.77,4.49328693]
[1769378410720,4.36078946,118.8,118.77,7.26888001]
[1769378410917,4.36078946,118.8,118.77,4.49328693]
[1769378411725,4.36078946,118.8,118.77,7.26888001]
[1769378411918,4.36078946,118.8,118.77,4.49328693]
[1769378414022,4.36078946,118.8,118.75,4.49328693]
[1769378414023,2.77559308,118.79,118.75,4.49328693]
[1769378414214,4.36078946,118.78,118.75,4.49328693]
[1769378417227,4.36078946,118.78,118.75,7.26774885]
[1769378417609,4.36078946,118.78,118.75,15.68879847]
[1769378418730,11.19201041,118.8,118.75,11.19551154]
[1769378419030,4.20754572,118.79,118.76,4.10399131]
[1769378419230,4.20754572,118.79,118.76,6.87845323]
[1769378421946,4.20754572,118.79,118.76,4.10399131]
[1769378424134,4.20754572,118.79,118.76,6.87845323]
[1769378426135,4.20754572,118.8,118.77,4.10399131]
[1769378427044,8.41678096,118.82,118.76,11.19459695]
[1769378427045,4.20754572,118.82,118.8,4.10399131]
[1769378427538,4.20754572,118.82,118.8,2.77446192]
[1769378427747,4.20754572,118.82,118.79,6.87845323]
[1769378429046,4.20754572,118.82,118.8,2.77446192]
[1769378429428,4.20754572,118.83,118.8,6.87845323]
[1769378429635,4.20754572,118.84,118.81,4.10399131]
[1769378430523,4.20754572,118.84,118.8,6.87845323]
[1769378432651,4.20754572,118.84,118.77,21.04869666]
[1769378432652,4.20754572,118.82,118.78,12.52252032]
[1769378432861,4.20754572,118.83,118.79,12.52180054]
[1769378433031,4.20754572,118.83,118.79,15.29626246]
[1769378434227,4.20754572,118.83,118.79,15.42439987]
[1769378435346,4.43765325,118.82,118.78,15.42515112]
[1769378435770,4.43765325,118.82,118.79,4.23212872]
[1769378436245,4.43765325,118.8,118.77,4.23212872]
[1769378436642,4.43765325,118.79,118.76,4.23212872]
[1769378441258,4.43765325,118.79,118.76,15.42693141]
[1769378441936,4.43765325,118.79,118.77,4.23212872]
[1769378443860,4.43765325,118.8,118.77,4.23212872]
[1769378445264,4.43765325,118.8,118.75,4.23212872]
[1769378445567,4.43765325,118.79,118.76,4.23212872]
[1769378448450,4.43765325,118.78,118.75,4.23212872]
[1769378449861,2.77446192,118.79,118.75,4.23212872]
[1769378450068,7.21211517,118.79,118.75,4.23212872]
[1769378451268,4.43765325,118.78,118.75,4.23212872]
[1769378452176,11.19345065,118.78,118.73,12.65423302]
[1769378452361,11.19345065,118.78,118.73,15.42869494]
[1769378452362,4.43765325,118.77,118.73,15.42869494]
[1769378452762,4.43765325,118.77,118.73,11.19656622]
[1769378453074,4.43765325,118.77,118.74,4.23212872]
[1769378456571,7.21211517,118.78,118.74,4.23212872]
[1769378457155,4.43765325,118.77,118.74,4.23212872]
[1769378457559,4.43765325,118.78,118.75,4.23212872]
[1769378457777,4.43765325,118.8,118.77,7.00659064]
[1769378457954,4.43765325,118.81,118.78,4.23212872]
[1769378460260,4.43765325,118.81,118.77,7.00659064]
[1769378460578,4.43765325,118.81,118.77,4.23212872]
[1769378460774,2.77446192,118.81,118.77,4.23212872]
[1769378460982,4.43765325,118.79,118.75,12.65294625]
[1769378462079,4.43765325,118.75,118.72,12.65494946]
[1769378462372,4.43765325,118.75,118.72,4.23212872]
[1769378464378,4.31034915,118.74,118.71,4.19662906]
[1769378464575,7.08481107,118.74,118.71,4.19662906]
[1769378464776,4.31034915,118.74,118.71,4.19662906]
[1769378466056,7.08481107,118.74,118.71,4.19662906]
[1769378466663,4.31034915,118.72,118.68,4.19662906]
[1769378466889,4.31034915,118.71,118.68,4.19662906]
[1769378467864,4.31034915,118.72,118.68,4.19662906]
[1769378469988,4.31034915,118.72,118.68,6.97109098]
[1769378471171,4.31034915,118.72,118.7,2.77446192]
[1769378471589,4.31034915,118.72,118.67,8.6266658]
[1769378471894,4.31034915,118.69,118.67,0.2]
[1769378472582,4.31034915,118.69,118.67,2.97446192]
[1769378472976,4.31034915,118.68,118.66,0.2]
[1769378474879,12.73649208,118.68,118.66,0.2]
[1769378475086,4.31034915,118.67,118.66,0.2]
[1769378475387,4.31034915,118.67,118.65,0.2]